bitfinex/quotes_ETHUSD_20251111
["timestamp","ask_amount","ask_price","bid_price","bid_amount"]
[1762819708200,2.80001608,3571.5,3571.2,1.0]
[1762819708512,1.259712,3572.0,3571.2,0.4927]
[1762819708668,2.79964093,3571.9,3571.7,1.0]
[1762819709813,2.79970883,3571.8,3571.7,1.0]
[1762819712272,2.79983865,3571.7,3571.5,1.0]
[1762819712507,2.7998656,3571.6,3571.5,1.0]
[1762819721051,2.8000224,3571.4,3571.3,1.002]
[1762819721539,1.259712,3572.6,3571.3,1.002]
[1762819721540,0.75755883,3572.9,3571.3,0.969]
[1762819721830,2.7992386,3572.4,3571.5,0.4743]
[1762819722030,2.79939533,3572.2,3572.1,1.0]
[1762819722195,2.79955207,3572.0,3571.9,1.0]
[1762819722629,0.011,3572.9,3571.4,0.4927]
[1762819722630,2.79980718,3571.7,3571.4,0.4927]
[1762819722792,2.79984384,3571.7,3571.6,1.0]
[1762819723115,2.79984384,3571.7,3571.5,1.0]
[1762819723116,2.7998656,3571.6,3571.5,1.0]
[1762819723716,2.79892521,3572.8,3571.8,1.0]
[1762819723903,3.39616497,3572.7,3571.8,1.0]
[1762819724103,2.7990819,3572.6,3571.8,1.0]
[1762819724309,2.79950167,3572.1,3571.8,1.0]
[1762819724731,0.44642979,3572.5,3571.5,0.4927]
[1762819724934,0.011,3572.9,3571.9,1.0]
[1762819724935,2.79939008,3572.3,3571.9,1.0]
[1762819725148,2.79954164,3572.1,3571.9,1.0]
[1762819725443,2.79941462,3572.2,3572.0,1.0]
[1762819725643,2.79941462,3572.2,3572.0,1.4743]
[1762819726131,1.259712,3572.7,3572.0,1.4743]
[1762819726395,2.79947369,3572.1,3572.0,1.4743]
[1762819726844,2.79924051,3572.4,3572.3,1.0]
[1762819727543,0.011,3572.9,3572.1,0.1887]
[1762819727845,2.79921397,3572.5,3572.1,1.0]
[1762819728047,0.011,3572.9,3572.1,1.0]
[1762819728048,2.79936996,3572.3,3572.1,1.0]
[1762819728253,2.79939533,3572.2,3572.1,1.0]
[1762819728424,2.79933032,3572.3,3572.1,1.0]
[1762819728605,2.79939533,3572.2,3572.1,1.0]
[1762819729152,2.79934266,3572.3,3572.1,1.0]
[1762819729356,2.79934266,3572.3,3572.1,1.1887]
[1762819729513,2.79924361,3572.4,3572.3,1.0]
[1762819732670,2.80989928,3572.9,3572.3,1.0]
[1762819732671,0.011,3572.9,3572.3,1.0]
[1762819732861,2.7992386,3572.4,3572.3,1.0]
[1762819733167,2.8002386,3572.4,3572.3,1.0]
[1762819735163,0.001,3572.4,3572.1,1.0]
[1762819735344,0.001,3572.4,3572.3,0.4831]
[1762819735743,0.001,3572.4,3572.3,1.9518]
[1762819735947,0.001,3572.4,3572.3,2.49903573]
[1762819736667,0.001,3572.4,3572.3,1.9518]
[1762819737158,0.001,3572.4,3572.3,2.34197003]
[1762819737544,0.001,3572.4,3572.3,1.9518]
[1762819737779,0.001,3572.4,3572.3,2.34197003]
[1762819738258,0.001,3572.4,3572.3,1.9518]
[1762819739069,0.001,3572.4,3572.3,2.34197003]
[1762819739576,0.001,3572.4,3572.3,5.14128699]
[1762819739761,0.001,3572.4,3572.3,5.54519282]
[1762819740086,0.001,3572.4,3572.3,5.93536285]
[1762819740283,0.001,3572.4,3572.3,5.98536285]
[1762819740583,0.001,3572.8,3572.7,3.84900355]
[1762819740750,0.001,3572.8,3572.7,8.54378787]
[1762819740946,0.001,3572.8,3572.7,9.00168787]
[1762819741283,0.001,3572.8,3572.7,9.3918579]
[1762819741947,0.001,3572.8,3572.7,11.4403829]
[1762819742397,0.001,3572.8,3572.7,13.5581919]
[1762819742887,0.001,3572.8,3572.7,13.9636959]
[1762819743094,0.011,3572.9,3572.8,5.88564457]
[1762819743266,0.011,3572.9,3572.8,20.61876561]
[1762819743465,0.001,3573.3,3573.2,0.405504]
[1762819743675,0.001,3573.6,3573.2,0.405504]
[1762819743676,0.001,3573.6,3573.5,9.03415024]
[1762819743989,0.001,3573.6,3573.5,16.17468162]
[1762819744392,0.001,3573.6,3573.5,16.91758462]
[1762819744610,0.001,3573.6,3573.5,15.38545762]
[1762819744769,0.001,3573.6,3573.5,14.66445762]
[1762819744965,0.001,3573.6,3573.5,11.83577593]
[1762819746801,0.001,3573.6,3573.5,14.79504693]
[1762819747107,0.001,3573.6,3573.5,11.83577593]
[1762819747314,0.001,3573.6,3573.5,15.43663962]
[1762819747469,0.001,3573.6,3573.5,14.27213062]
[1762819747806,0.001,3573.6,3573.5,12.25711262]
[1762819748926,0.001,3573.6,3573.5,14.94033362]
[1762819749610,0.001,3573.6,3573.5,18.80033362]
[1762819749793,0.01,3574.9,3573.6,4.05801063]
[1762819749994,0.01,3574.9,3573.6,22.36399502]
[1762819750194,0.01,3574.9,3573.6,13.47875902]
[1762819750600,0.01,3574.9,3573.6,13.74873502]
[1762819750805,0.01,3574.9,3573.6,14.71585802]
[1762819751707,0.01,3574.9,3573.6,16.89159602]
[1762819752626,0.001,3574.4,3573.6,16.27483902]
[1762819752801,0.001,3574.4,3573.6,16.32090102]
[1762819752983,0.001,3574.4,3573.6,16.05354502]
[1762819753183,0.001,3574.4,3573.6,19.91354502]
[1762819753839,0.001,3574.4,3573.6,23.08644902]
[1762819754415,0.001,3574.4,3573.6,23.49195302]
[1762819754775,0.001,3574.4,3573.6,29.59751602]
[1762819754995,0.001,3574.4,3573.6,29.37092802]
[1762819755418,0.001,3574.4,3573.6,29.6985054]
[1762819755620,1e-08,3573.9,3573.8,3.26854203]
[1762819755815,0.001,3574.4,3573.9,4.51327973]
[1762819756018,0.001,3574.4,3573.9,26.07732547]
[1762819756233,0.001,3574.4,3573.9,24.63294047]
[1762819756379,0.001,3574.4,3574.3,4.5129666]
[1762819756714,0.001,3574.4,3574.3,10.65923571]
[1762819756880,0.001,3574.4,3574.3,21.94693721]
[1762819757294,0.001,3574.4,3574.3,20.30666121]
[1762819757586,0.001,3574.4,3574.3,23.67349921]
[1762819758082,0.001,3574.4,3574.3,22.67672721]
[1762819758282,0.001,3574.4,3574.3,21.02038821]
[1762819758512,0.001,3574.4,3574.3,22.08927121]
[1762819759502,0.001,3574.4,3574.3,22.88133321]
[1762819760295,0.001,3574.4,3574.3,23.20891059]
[1762819760523,0.001,3574.4,3574.3,29.82372759]
[1762819761415,0.001,3574.4,3574.3,28.15048759]
[1762819761634,0.001,3574.4,3574.3,26.63768259]
[1762819762402,0.001,3574.4,3574.3,27.75037959]
[1762819762858,0.001,3574.4,3574.3,24.73222559]
[1762819763142,0.001,3574.4,3574.3,23.28743659]
[1762819763521,0.001,3574.4,3574.3,34.28989659]
[1762819764124,0.001,3574.4,3574.3,33.65381559]
[1762819764327,0.001,3574.4,3574.3,33.24172859]
[1762819764541,0.001,3574.4,3574.3,35.30842059]
[1762819764924,0.001,3574.4,3574.3,33.05356959]
[1762819765521,0.001,3574.4,3574.3,34.53935759]
[1762819766632,0.001,3574.4,3574.3,40.04933959]
[1762819767018,0.001,3574.4,3574.3,39.70209359]
[1762819767611,0.001,3574.4,3574.3,24.41476059]
[1762819768832,0.001,3574.4,3574.3,29.11269359]
[1762819769031,0.001,3574.4,3574.3,28.76102059]
[1762819769616,0.001,3574.4,3574.3,26.46835421]
[1762819769822,0.001,3574.4,3574.3,28.22497221]
[1762819770021,0.001,3574.4,3574.3,28.55254959]
[1762819770565,0.001,3574.8,3574.7,3.25294154]
[1762819770766,0.001,3575.2,3575.1,5.51234055]
[1762819771061,0.01,3575.9,3575.8,3.84657698]
[1762819771268,0.01,3575.9,3575.8,5.59848898]
[1762819771547,0.01,3575.9,3575.8,11.49022467]
[1762819771723,0.01,3575.9,3575.8,11.00202467]
[1762819772343,0.01,3575.9,3575.8,10.04324767]
[1762819772549,0.01,3575.9,3575.8,11.728115]
[1762819772849,0.01,3575.9,3575.8,12.621819]
[1762819773250,0.01,3575.9,3575.8,17.593213]
[1762819773945,0.01,3575.9,3575.8,17.266979]
[1762819774147,0.01,3575.9,3575.8,17.61455638]
[1762819774450,0.01,3575.9,3575.8,18.00404038]
[1762819774943,0.01,3575.9,3575.8,21.24211323]
[1762819775369,0.01,3575.9,3575.8,23.11867123]
[1762819775978,0.01,3575.9,3575.8,21.83849123]
[1762819776186,0.01,3575.9,3575.8,22.14649123]
[1762819776494,0.01,3575.9,3575.8,20.04918323]
[1762819776685,0.01,3575.9,3575.8,22.34776823]
[1762819776828,0.01,3575.9,3575.8,22.53030223]
[1762819777031,0.01,3575.9,3575.8,19.47797423]
[1762819777462,0.01,3575.9,3575.8,21.19680123]
[1762819777982,0.01,3575.9,3575.8,20.65880123]
[1762819778738,0.01,3575.9,3575.8,13.83850523]
[1762819779072,0.01,3575.9,3575.8,11.70134723]
[1762819779242,0.01,3575.9,3575.8,13.21134723]
[1762819779439,0.01,3575.9,3575.8,16.41784023]
[1762819779848,0.01,3575.9,3575.8,23.66306423]
[1762819780459,0.01,3575.9,3575.8,22.47056423]
[1762819780983,0.01,3575.9,3575.8,23.66306423]
[1762819781790,0.01,3575.9,3575.8,22.47056423]
[1762819781985,0.01,3575.9,3575.8,23.66106423]
[1762819782287,0.01,3575.9,3575.8,22.64672323]
[1762819782992,0.01,3575.9,3575.8,27.84042823]
[1762819783796,0.01,3575.9,3575.8,26.64792823]
[1762819783988,0.01,3575.9,3575.8,28.08705123]
[1762819784184,0.01,3575.9,3575.8,27.84042823]
[1762819784400,0.01,3575.9,3575.8,28.18317228]
[1762819785076,1e-08,3575.9,3575.8,30.86185628]
[1762819785277,0.01,3576.9,3576.8,3.84579512]
[1762819785501,0.01,3576.9,3576.8,8.49430014]
[1762819785804,0.01,3576.9,3576.8,9.75401214]
[1762819786534,0.01,3577.9,3577.8,2.84501369]
[1762819786704,0.01,3577.9,3577.8,1.05]
[1762819786868,0.011,3577.9,3577.8,1.44868669]
[1762819787066,0.012,3577.9,3577.8,4.24370038]
[1762819787574,0.011,3577.9,3577.8,4.24370038]
[1762819787767,0.012,3577.9,3577.8,4.24370038]
[1762819788401,0.013,3577.9,3577.8,4.24370038]
[1762819788605,0.011,3577.9,3577.8,4.94758659]
[1762819788777,0.011,3577.9,3577.8,11.25325782]
[1762819788967,0.011,3577.9,3577.8,10.76105782]
[1762819789161,0.011,3577.9,3577.8,8.53323682]
[1762819789403,0.011,3577.9,3577.8,15.58462482]
[1762819789620,0.011,3577.9,3577.8,17.05707582]
[1762819789915,0.011,3577.9,3577.8,15.91133082]
[1762819790317,0.011,3577.9,3577.8,16.19078682]
[1762819790635,0.011,3577.9,3577.8,16.68298682]
[1762819790927,0.011,3577.9,3577.8,13.10774608]
[1762819791227,0.011,3577.9,3577.8,13.00362608]
[1762819791428,0.011,3577.9,3577.8,15.18452608]
[1762819792100,0.011,3577.9,3577.8,15.67272608]
[1762819792300,0.011,3577.9,3577.8,14.50907708]
[1762819792500,0.011,3577.9,3577.8,13.23349608]
[1762819792725,0.011,3577.9,3577.8,12.80929413]
[1762819793032,0.011,3577.9,3577.8,13.23349608]
[1762819793391,0.011,3577.9,3577.8,12.68538408]
[1762819793940,0.011,3577.9,3577.8,13.17758408]
[1762819794399,0.011,3577.9,3577.8,14.03077608]
[1762819795000,0.011,3577.9,3577.8,13.05543719]
[1762819795435,0.011,3577.9,3577.8,9.67778119]
[1762819796204,0.011,3577.9,3577.8,9.18558119]
[1762819797535,0.011,3577.9,3577.8,9.64208119]
[1762819798334,0.013,3577.9,3577.8,1.05]
[1762819798652,0.012,3577.9,3577.8,4.21483297]
[1762819799324,0.011,3577.9,3577.8,6.44121164]
[1762819799522,0.011,3577.9,3577.8,10.97478164]
[1762819799710,0.011,3577.9,3577.8,8.55419564]
[1762819799904,0.011,3577.9,3577.8,10.27968472]
[1762819800097,0.011,3577.9,3577.8,9.96922772]
[1762819800305,0.012,3577.9,3577.8,7.23370072]
[1762819800534,0.011,3577.9,3577.8,9.76175872]
[1762819800721,0.011,3577.9,3577.8,11.58863172]
[1762819801150,0.011,3577.9,3577.8,11.11213172]
[1762819801327,0.011,3577.9,3577.8,10.56752672]
[1762819802406,0.011,3577.9,3577.8,16.20834872]
[1762819802600,0.011,3577.9,3577.8,15.91259872]
[1762819803106,2.79391231,3579.3,3577.8,15.91259872]
[1762819803107,1.00189723,3579.7,3579.0,1.0]
[1762819803336,0.60007225,3579.4,3579.2,2.95276734]
[1762819803536,3.3938511,3579.4,3579.3,1.0]
[1762819803809,0.60004479,3579.4,3579.3,1.0]
[1762819804325,0.59997666,3579.4,3579.0,2.95276734]
[1762819804530,3.39374097,3579.4,3579.3,1.0]
[1762819805156,3.39374097,3579.4,3578.1,0.188]
[1762819805157,2.79392042,3579.2,3579.1,1.0]
[1762819805356,2.79392042,3579.2,3577.9,4.30392753]
[1762819805357,1.35028321,3579.2,3578.3,0.12]
[1762819805558,6.34674249,3579.1,3577.9,0.05]
[1762819805721,2.79461093,3578.4,3578.3,0.995]
[1762819806172,2.79453456,3578.5,3577.9,0.05]
[1762819806463,2.79453456,3578.5,3578.4,0.995]
[1762819806628,2.79480242,3578.1,3578.0,0.995]
[1762819807024,2.74480242,3578.1,3578.0,0.995]
[1762819810237,3.29874499,3578.1,3578.0,0.995]
[1762819810433,3.29874499,3578.1,3577.7,0.995]
[1762819810434,2.79501369,3577.8,3577.7,0.995]
[1762819810632,0.60097902,3577.8,3577.1,0.01]
[1762819810838,2.79516994,3577.6,3576.8,0.38109414]
[1762819811067,2.79595146,3576.6,3576.5,0.002]
[1762819811250,9.64811096,3576.6,3576.5,0.002]
[1762819811449,8.64621373,3576.6,3576.5,0.002]
[1762819811635,5.06140191,3576.6,3576.5,0.002]
[1762819811836,5.40637167,3576.6,3576.5,0.002]
[1762819812175,2.78023154,3576.6,3576.5,1.002]
[1762819812333,4.65589791,3576.6,3576.5,1.88566994]
[1762819812532,4.05566346,3576.6,3576.5,1.002]
[1762819812767,4.65563979,3576.6,3576.5,1.002]
[1762819813069,4.65563979,3576.6,3576.5,0.48025121]
[1762819813421,4.65563979,3576.6,3576.5,0.002]
[1762819813626,5.42891597,3576.6,3576.5,0.002]
[1762819813826,5.40078406,3576.6,3576.5,0.002]
[1762819814122,4.80080773,3576.6,3576.5,0.002]
[1762819814323,4.80080773,3576.6,3576.5,1.45296887]
[1762819814559,4.80080773,3576.6,3576.5,1.002]
[1762819815060,2.00485627,3576.6,3576.5,1.002]
[1762819815235,2.79595146,3576.6,3576.5,1.42307721]
[1762819815836,0.75047376,3577.4,3576.5,1.42307721]
[1762819816041,2.79566691,3577.0,3576.7,1.0]
[1762819816242,2.79579512,3576.8,3576.7,1.0]
[1762819816745,2.79572484,3576.9,3576.7,1.0]
[1762819816928,2.28970275,3577.5,3576.7,1.0]
[1762819816929,3.0753676,3576.8,3576.7,1.0]
[1762819817330,0.75047376,3578.0,3577.7,1.0]
[1762819817527,0.01,3578.9,3578.8,1.0]
[1762819817831,0.01,3578.9,3578.1,1.0]
[1762819817832,2.79470124,3578.2,3578.1,1.0]
[1762819818050,0.405504,3578.0,3577.2,1.0]
[1762819818250,0.405504,3578.0,3575.0,1.51]
[1762819818251,2.7956388,3577.0,3576.9,1.0]
[1762819818454,1.665216,3577.8,3576.6,1.0]
[1762819818638,2.79587329,3576.7,3576.6,1.0]
[1762819819852,2.79556812,3577.1,3576.6,1.0]
[1762819820136,0.405504,3577.8,3576.6,1.0]
[1762819820137,2.79587329,3576.7,3576.6,1.0]
[1762819820385,2.79579775,3576.8,3576.6,1.0]
[1762819820772,3.07520051,3577.0,3576.6,1.0]
[1762819821169,2.79587329,3576.7,3576.6,1.0]
[1762819822087,0.27955681,3577.0,3576.9,1.0]
[1762819822302,0.27955681,3577.0,3576.7,1.0]
[1762819822455,2.79579988,3576.8,3576.7,1.0]
[1762819823979,2.79579988,3576.8,3575.6,0.05]
[1762819823980,2.79595146,3576.6,3575.9,1.259712]
[1762819824293,3.10323114,3576.9,3576.6,1.0]
[1762819824786,0.30751209,3576.9,3576.6,1.0]
[1762819825086,2.79587329,3576.7,3576.6,1.0]
[1762819825950,2.79595146,3576.6,3576.1,0.012]
[1762819826667,4.05566346,3576.6,3576.1,0.012]
[1762819827001,4.68183496,3576.6,3576.1,0.012]
[1762819827302,6.4732627,3576.6,3576.1,0.012]
[1762819827455,6.44513079,3576.6,3576.1,0.012]
[1762819830589,7.1927011,3576.6,3576.1,0.012]
[1762819831660,7.1927011,3576.6,3575.1,0.01]
[1762819831661,2.79704631,3575.2,3575.1,0.01]
[1762819831866,3.07675094,3575.2,3575.1,0.01]
[1762819832085,2.79704631,3575.2,3575.1,0.01]
[1762819839212,3.39644522,3575.2,3575.1,0.01]
[1762819844197,6.10047139,3575.2,3575.1,0.012]
[1762819844605,11.11571457,3575.2,3575.1,1e-08]
[1762819844807,9.61498812,3575.2,3575.1,1e-08]
[1762819845080,9.61498812,3575.2,3574.9,0.002]
[1762819845081,3.20270679,3575.0,3574.9,0.002]
[1762819845442,3.20270679,3575.0,3574.7,0.002]
[1762819845443,3.2030198,3574.6,3574.5,0.002]
[1762819845719,4.46304488,3574.2,3573.2,0.002]
[1762819846027,5.0905757,3574.2,3573.2,0.002]
[1762819848113,3.20372433,3573.7,3573.2,0.002]
[1762819848313,3.80312324,3573.7,3573.2,0.002]
[1762819848515,5.09096715,3573.7,3573.2,0.002]
[1762819848749,5.83863964,3573.7,3573.2,0.002]
[1762819849042,5.81050773,3573.7,3573.2,0.002]
[1762819849252,6.77119311,3573.7,3573.2,0.002]
[1762819850059,6.77119311,3573.7,3573.1,1e-08]
[1762819850060,2.79861188,3573.2,3573.1,1e-08]
[1762819850245,4.65772279,3573.2,3573.1,1e-08]
[1762819850416,5.31572279,3573.2,3573.1,1e-08]
[1762819850618,7.48151847,3573.2,3573.1,1e-08]
[1762819850915,7.45338656,3573.2,3573.1,1e-08]
[1762819851528,8.94530771,3573.2,3573.1,1e-08]
[1762819852651,8.28730771,3573.2,3573.1,1e-08]
[1762819852951,6.79538656,3573.2,3573.1,1e-08]
[1762819853853,5.87571503,3573.2,3573.1,1e-08]
[1762819854153,7.13542703,3573.2,3573.1,1e-08]
[1762819854377,4.14355526,3573.2,3573.1,1e-08]
[1762819854572,3.39801079,3573.2,3573.1,1e-08]
[1762819855137,3.39527067,3573.2,3573.1,1e-08]
[1762819855837,3.39527067,3573.2,3573.1,0.66760001]
[1762819856034,0.59665879,3573.2,3573.1,0.66760001]
[1762819856240,0.59665879,3573.3,3573.1,1.12950001]
[1762819856439,2.79861188,3573.2,3573.1,1.65440001]
[1762819856668,3.39527067,3573.2,3573.1,1.65440001]
[1762819856874,3.39527067,3573.2,3573.1,2.13280001]
[1762819857462,3.39527067,3573.2,3573.1,1.67090001]
[1762819857666,3.39527067,3573.2,3573.1,0.67090001]
[1762819858000,3.39527067,3573.2,3573.1,1e-08]
[1762819858178,4.21519996,3573.2,3573.1,1e-08]
[1762819858870,4.21519996,3573.2,3573.1,0.47840001]
[1762819859174,3.39527067,3573.2,3573.1,0.66630001]
[1762819859363,3.39527067,3573.2,3573.1,1.12820001]
[1762819860265,3.39527067,3573.2,3573.1,1e-08]
[1762819860467,5.06048667,3573.2,3573.1,1e-08]
[1762819860654,5.06048667,3573.2,3572.1,0.2032]
[1762819860655,2.79939533,3572.2,3572.1,0.01]
[1762819860975,4.614216,3572.1,3571.0,0.1932]
[1762819861276,0.74624561,3571.7,3571.3,0.4639]
[1762819861479,1.85637079,3571.9,3571.3,0.4639]
[1762819861666,0.59665879,3571.8,3571.6,0.4784]
[1762819861886,0.74624561,3572.0,3571.7,0.4619]
[1762819861887,0.59665879,3571.9,3571.7,0.4619]
[1762819862195,0.59665879,3571.9,3571.8,1.0]
[1762819862402,2.79963044,3571.9,3571.8,1.4784]
[1762819862597,3.39628923,3571.9,3571.8,1.9403]
[1762819863000,2.8000224,3571.4,3571.3,0.002]
[1762819863567,3.42427798,3571.4,3571.3,0.002]
[1762819863863,5.08949398,3571.4,3571.3,0.002]
[1762819864067,3.20568321,3571.2,3571.1,1e-08]
[1762819864288,6.98622116,3571.2,3571.1,1e-08]
[1762819864605,9.90708925,3571.2,3571.1,1e-08]
[1762819864808,6.95808925,3571.2,3571.1,1e-08]
[1762819865198,7.98014719,3570.9,3570.8,1e-08]
[1762819865384,8.57627086,3570.9,3570.8,1e-08]
[1762819865709,10.39870484,3570.9,3570.8,1e-08]
[1762819866077,9.99320084,3570.9,3570.8,1e-08]
[1762819866274,4.46617953,3570.2,3570.1,0.01]
[1762819866606,8.57681993,3570.2,3570.1,0.01]
[1762819867196,8.57681993,3570.2,3570.1,1e-08]
[1762819867401,10.85219241,3570.2,3570.1,1e-08]
[1762819868386,9.86317956,3570.2,3570.1,1e-08]
[1762819869727,9.45767556,3570.2,3570.1,1e-08]
[1762819870573,10.85219241,3570.2,3570.1,1e-08]
[1762819870689,7.98116706,3569.6,3568.8,0.002]
[1762819870889,10.6435549,3569.6,3568.8,0.002]
[1762819871191,9.65554097,3569.6,3568.8,0.002]
[1762819871412,10.6431693,3569.6,3568.8,0.002]
[1762819872327,10.6436711,3569.6,3568.8,0.002]
[1762819873224,6.47669695,3569.6,3569.1,0.1999]
[1762819874017,10.39671768,3569.6,3569.1,0.012]
[1762819874230,10.6436711,3569.6,3569.1,0.012]
[1762819874431,9.65554097,3569.6,3569.1,0.012]
[1762819876052,3.20733079,3569.1,3568.7,0.002]
[1762819876198,3.20764483,3568.7,3568.6,1e-08]
[1762819876400,5.0634805,3568.7,3568.6,1e-08]
[1762819877223,4.6579765,3568.7,3568.6,0.94030001]
[1762819878098,1.259712,3568.7,3568.6,0.94030001]
[1762819878301,2.80212433,3568.8,3568.6,0.94030001]
[1762819878501,2.80214083,3568.7,3568.6,0.94030001]
[1762819881163,8.59753601,3568.7,3568.6,1e-08]
[1762819881325,8.5694041,3568.7,3568.6,1e-08]
[1762819883640,9.30982406,3568.7,3568.6,1e-08]
[1762819885149,8.5694041,3568.7,3568.6,1e-08]
[1762819885881,8.1639001,3568.7,3568.6,1e-08]
[1762819886883,2.80253349,3568.2,3568.1,1e-08]
[1762819887098,12.21303192,3568.2,3568.1,1e-08]
[1762819887258,12.18490001,3568.2,3568.1,1e-08]
[1762819887677,11.52390001,3568.2,3568.1,1e-08]
[1762819887874,8.83039601,3568.2,3568.1,1e-08]
[1762819888055,6.29672141,3568.2,3568.1,1e-08]
[1762819888271,7.78373342,3568.2,3568.1,1e-08]
[1762819888456,6.29672141,3568.2,3568.1,1e-08]
[1762819888658,10.31322541,3568.2,3568.1,1e-08]
[1762819889208,6.15727313,3567.9,3567.8,0.002]
[1762819889500,12.43553964,3567.9,3567.8,0.002]
[1762819889807,4.46853512,3567.2,3567.1,1e-08]
[1762819890013,9.26681755,3567.2,3567.1,1e-08]
[1762819890159,12.15648526,3567.2,3567.1,1e-08]
[1762819890359,10.17155017,3567.2,3567.1,1e-08]
[1762819890761,12.15648526,3567.2,3567.1,1e-08]
[1762819891205,2.80402658,3566.3,3566.2,0.1806]
[1762819891383,3.39666037,3566.3,3566.2,0.1806]
[1762819891688,3.39666037,3566.3,3566.2,1.1273]
[1762819892010,3.39666037,3566.3,3566.2,0.6393]
[1762819892712,4.2645307,3566.3,3566.2,1.1273]
[1762819893390,5.25577744,3566.3,3566.2,1.1273]
[1762819893592,1.58388053,3566.3,3566.2,1.1273]
[1762819893794,0.59263379,3566.3,3566.2,1.1273]
[1762819893992,0.09263379,3566.3,3566.2,1.1273]
[1762819894893,0.83761364,3566.3,3566.2,1.1273]
[1762819895193,0.09263379,3566.3,3566.2,1.1273]
[1762819895777,0.09263379,3566.3,3566.2,4.38456492]
[1762819896007,0.74497985,3566.9,3566.5,2.80385856]
[1762819896210,0.99124674,3567.1,3566.8,0.4587]
[1762819896211,0.74497985,3567.1,3566.8,0.4587]
[1762819896512,1.48687012,3567.5,3567.0,0.4587]
[1762819896513,0.74497985,3567.5,3567.0,0.4587]
[1762819896677,0.74497985,3567.5,3566.9,3.29154979]
[1762819896678,3.54798925,3567.6,3567.4,0.6393]
[1762819896879,3.54798925,3567.6,3567.5,0.488]
[1762819897079,3.54798925,3567.6,3567.5,0.9467]
[1762819898018,0.74497985,3567.6,3567.0,0.488]
[1762819898214,2.80339771,3567.1,3567.0,0.488]
[1762819898402,3.54954323,3567.3,3567.1,0.1806]
[1762819898602,3.54954323,3567.3,3567.2,0.488]
[1762819898803,4.31206281,3567.3,3567.1,0.1806]
[1762819899002,2.8035549,3566.9,3566.8,0.488]
[1762819899439,2.8035549,3566.9,3566.8,0.9467]
[1762819899990,3.54995842,3566.9,3566.8,0.9467]
[1762819900514,2.8035549,3566.9,3566.8,0.9467]
[1762819901624,2.8035549,3566.9,3566.8,0.4587]
[1762819901788,3.79480164,3566.9,3566.8,0.4587]
[1762819902192,1.79975826,3566.9,3566.2,0.6686]
[1762819902381,3.55074856,3566.5,3566.2,0.6686]
[1762819902587,0.74681601,3566.5,3566.3,0.488]
[1762819902787,0.74681601,3566.5,3566.4,0.4587]
[1762819903206,3.55062819,3566.6,3566.4,0.9467]
[1762819903407,3.55062819,3566.6,3566.5,0.4587]
[1762819903408,0.74681601,3566.6,3566.5,0.4587]
[1762819903620,2.80379072,3566.6,3566.5,0.4587]
[1762819903987,2.80379072,3566.6,3566.5,0.9467]
[1762819904188,3.5506369,3566.6,3566.5,0.9467]
[1762819904919,0.74684618,3566.6,3566.5,0.9467]
[1762819905121,3.5506369,3566.6,3566.5,0.9467]
[1762819905543,2.80379072,3566.6,3566.5,0.9467]
[1762819906053,2.80410521,3566.2,3566.1,0.5]
[1762819906228,4.14887716,3566.2,3566.1,0.012]
[1762819906433,3.40179251,3566.2,3566.1,0.4707]
[1762819906593,4.39303925,3566.2,3566.1,0.012]
[1762819906793,5.23410644,3566.2,3566.1,0.012]
[1762819907541,5.16230644,3566.2,3566.1,0.012]
[1762819911698,5.4307717,3566.2,3566.1,0.012]
[1762819911897,2.80434112,3565.9,3565.6,0.488]
[1762819912225,2.80434112,3565.9,3565.1,0.03]
[1762819912226,4.39852407,3565.9,3565.1,0.03]
[1762819912543,5.34520237,3565.9,3565.8,0.4607]
[1762819913400,5.34520237,3565.9,3565.8,0.9487]
[1762819914137,5.34520237,3565.9,3565.8,0.4607]
[1762819914447,5.34520237,3565.9,3565.8,0.002]
[1762819914652,5.34520237,3565.9,3565.1,0.03]
[1762819914653,2.80489173,3565.2,3565.1,0.03]
[1762819914800,6.24604252,3565.2,3565.1,0.03]
[1762819914995,5.60839503,3565.2,3565.1,1e-08]
[1762819915201,7.77393012,3565.2,3565.1,1e-08]
[1762819916002,2.80567869,3564.2,3564.1,0.01]
[1762819916201,4.15023174,3564.2,3564.1,0.01]
[1762819916426,5.01137532,3564.2,3564.1,0.01]
[1762819916628,4.14981256,3564.2,3564.1,1.1279]
[1762819917201,3.40336599,3564.2,3564.1,1.1279]
[1762819917400,3.40336599,3564.2,3564.1,0.01]
[1762819917599,3.40336599,3564.2,3564.1,0.6547]
[1762819918102,3.40336599,3564.2,3564.1,1.1279]
[1762819918308,3.40336599,3564.2,3564.1,0.6547]
[1762819918514,3.40336599,3564.2,3564.1,0.01]
[1762819918713,4.54959951,3564.2,3564.1,0.01]
[1762819918928,5.80931151,3564.2,3564.1,0.01]
[1762819919807,5.35861151,3564.2,3564.1,0.01]
[1762819920012,6.10347818,3564.2,3564.1,0.6547]
[1762819920531,6.10347818,3564.2,3564.1,0.01]
[1762819920743,5.40794466,3564.2,3564.1,0.01]
[1762819920958,5.40794466,3564.2,3564.1,1.1279]
[1762819920959,4.66307799,3564.2,3564.1,1.1279]
[1762819921168,5.11377799,3564.2,3564.1,0.01]
[1762819921479,7.80523676,3564.2,3564.1,1e-08]
[1762819921659,9.00417374,3564.2,3564.1,1e-08]
[1762819921990,1.82475619,3564.2,3563.5,0.4732]
[1762819922143,0.5976873,3564.1,3563.5,0.4732]
[1762819922474,0.5976873,3564.1,3563.1,0.1982]
[1762819922475,2.80620869,3563.6,3563.3,0.4732]
[1762819922628,2.80620869,3563.6,3563.5,0.4565]
[1762819922824,0.74432626,3564.4,3563.5,0.9297]
[1762819923037,2.80552126,3564.4,3564.3,0.6447]